bitfinex-derivatives/quotes_BTCF0:USTF0_20250918
["timestamp","ask_amount","ask_price","bid_price","bid_amount"]
[1758202843487,0.39808,117650.0,117640.0,0.41722005]
[1758202843687,0.03528,117640.0,117630.0,0.77812005]
[1758202843894,0.03528,117640.0,117630.0,0.02219]
[1758202844094,1.04111005,117640.0,117630.0,0.82595]
[1758202844294,0.03528,117630.0,117620.0,0.02229]
[1758202844591,0.01298,117620.0,117610.0,0.41443726]
[1758202844801,0.03528,117620.0,117600.0,0.49171]
[1758202845090,0.03528,117620.0,117590.0,0.82651]
[1758202845091,0.03528,117600.0,117590.0,0.82651]
[1758202845283,0.39608,117600.0,117590.0,0.82651]
[1758202845483,0.37388,117610.0,117590.0,1.22154005]
[1758202845792,0.01298,117600.0,117590.0,1.58234005]
[1758202846286,0.01298,117600.0,117590.0,0.82651]
[1758202846483,0.03528,117600.0,117590.0,0.82651]
[1758202846690,0.39608,117600.0,117590.0,0.82651]
[1758202846888,0.39608,117600.0,117590.0,1.22154005]
[1758202847090,0.03528,117600.0,117590.0,1.22154005]
[1758202847694,0.39608,117600.0,117590.0,0.82651]
[1758202847994,0.39608,117600.0,117590.0,0.83251]
[1758202848197,0.39608,117600.0,117590.0,0.84051]
[1758202848895,0.39608,117600.0,117590.0,0.83251]
[1758202849088,0.39608,117600.0,117590.0,0.83351]
[1758202850795,0.39608,117600.0,117590.0,0.82751]
[1758202851193,0.79111005,117600.0,117590.0,0.82751]
[1758202851394,1.4361401,117600.0,117590.0,0.001]
[1758202851797,1.04111005,117600.0,117590.0,0.001]
[1758202851992,1.4361401,117600.0,117590.0,0.001]
[1758202852193,0.64608,117600.0,117590.0,0.001]
[1758202852501,1.4361401,117600.0,117590.0,0.001]
[1758202853098,0.03528,117580.0,117570.0,0.82719]
[1758202853397,0.79111005,117580.0,117570.0,0.02223]
[1758202853600,0.79111005,117580.0,117570.0,4e-05]
[1758202854596,0.79964684,117580.0,117570.0,0.00604]
[1758202854794,0.79111005,117580.0,117570.0,0.00604]
[1758202854994,0.79111005,117580.0,117570.0,0.02823]
[1758202855607,0.79111005,117580.0,117570.0,0.03623]
[1758202856408,0.85865917,117580.0,117570.0,0.01404]
[1758202856803,1.21945917,117580.0,117570.0,0.01404]
[1758202857006,1.46945917,117580.0,117570.0,0.01404]
[1758202857205,2.27437917,117580.0,117570.0,0.00604]
[1758202857405,2.27437917,117580.0,117570.0,4e-05]
[1758202857805,1.46945917,117580.0,117570.0,4e-05]
[1758202858005,2.27429917,117580.0,117570.0,4e-05]
[1758202859416,1.46945917,117580.0,117570.0,4e-05]
[1758202859715,2.27365917,117580.0,117570.0,4e-05]
[1758202859916,1.46945917,117580.0,117570.0,4e-05]
[1758202860109,2.27345917,117580.0,117570.0,4e-05]
[1758202860411,0.01391,117550.0,117540.0,0.34388]
[1758202860618,0.79097005,117550.0,117540.0,0.02226]
[1758202861314,0.03514,117530.0,117520.0,0.02236]
[1758202861519,0.79097005,117530.0,117520.0,0.0001]
[1758202861711,0.79097005,117530.0,117520.0,0.02236]
[1758202861910,0.39594,117530.0,117520.0,0.02236]
[1758202862109,0.79097005,117530.0,117520.0,0.02236]
[1758202862426,0.03514,117530.0,117520.0,0.27236]
[1758202863015,0.43017005,117530.0,117520.0,0.27236]
[1758202863215,0.43017005,117530.0,117520.0,0.28036]
[1758202863519,0.43017005,117530.0,117520.0,0.03036]
[1758202864312,0.43117005,117530.0,117520.0,0.04236]
[1758202865216,0.43017005,117530.0,117520.0,0.03636]
[1758202865719,0.79097005,117530.0,117520.0,0.03636]
[1758202866119,0.39594,117530.0,117520.0,0.03636]
[1758202866317,0.79097005,117530.0,117520.0,0.03636]
[1758202868007,0.79097005,117530.0,117520.0,0.0141]
[1758202868623,0.01391,117510.0,117500.0,0.36614]
[1758202868813,1.9884801,117510.0,117500.0,0.36614]
[1758202869113,0.03514,117490.0,117480.0,0.38306]
[1758202869318,0.43017005,117490.0,117480.0,0.38306]
[1758202869819,0.03514,117490.0,117480.0,0.38306]
[1758202870018,0.43017005,117490.0,117480.0,0.38306]
[1758202870421,0.03514,117480.0,117470.0,0.0223]
[1758202870615,1.23269005,117480.0,117470.0,0.0223]
[1758202870823,0.03514,117480.0,117470.0,0.0223]
[1758202871622,0.43017005,117480.0,117470.0,0.0223]
[1758202871821,0.03514,117480.0,117470.0,0.0223]
[1758202872322,0.03514,117480.0,117470.0,0.0243]
[1758202872919,0.03514,117480.0,117470.0,0.0253]
[1758202873114,0.01391,117480.0,117470.0,1.02972824]
[1758202873319,1.1548,117500.0,117490.0,0.02226]
[1758202873614,0.03514,117500.0,117490.0,0.02226]
[1758202874019,0.03514,117500.0,117490.0,0.38306]
[1758202874321,1.24641853,117510.0,117490.0,0.78506824]
[1758202874322,0.01391,117510.0,117490.0,0.78506824]
[1758202874911,0.01391,117510.0,117500.0,0.41588824]
[1758202875122,0.03514,117510.0,117500.0,0.02226]
[1758202875424,0.39594,117510.0,117500.0,0.02226]
[1758202875625,0.39594,117510.0,117480.0,0.3688]
[1758202875626,0.03514,117490.0,117480.0,0.38306]
[1758202876921,0.03614,117490.0,117480.0,0.02226]
[1758202877124,0.79056824,117490.0,117480.0,0.02226]
[1758202877318,0.03514,117480.0,117470.0,0.0223]
[1758202877826,0.03514,117480.0,117470.0,0.3831]
[1758202878130,0.01891,117490.0,117470.0,1.11181814]
[1758202878323,0.005,117490.0,117480.0,0.78506824]
[1758202878626,0.004,117490.0,117480.0,0.39144]
[1758202878828,0.004,117490.0,117480.0,0.78506824]
[1758202879126,0.004,117490.0,117480.0,1.58918824]
[1758202879426,0.004,117490.0,117480.0,1.92427144]
[1758202879618,0.005,117490.0,117480.0,1.92427144]
[1758202879818,0.001,117490.0,117480.0,1.92427144]
[1758202880019,0.001,117490.0,117480.0,1.12015144]
[1758202880220,0.001,117490.0,117480.0,1.92419144]
[1758202880726,1.29508764,117500.0,117490.0,0.4512159]
[1758202880921,1.29508764,117500.0,117490.0,1.20564414]
[1758202880922,1.26008764,117500.0,117490.0,1.20564414]
[1758202881424,1.27399764,117500.0,117490.0,2.00968414]
[1758202882021,1.27599764,117500.0,117490.0,2.07748237]
[1758202882222,1.27599764,117500.0,117490.0,1.6159359]
[1758202882424,1.27599764,117500.0,117490.0,2.00956414]
[1758202882617,1.27599764,117500.0,117490.0,1.20564414]
[1758202882818,1.27899764,117500.0,117490.0,1.92436824]
[1758202883025,1.27899764,117500.0,117490.0,1.92448824]
[1758202883228,1.27899764,117500.0,117490.0,1.92444824]
[1758202883521,1.27899764,117500.0,117490.0,2.00952424]
[1758202883926,1.27899764,117500.0,117490.0,1.92424824]
[1758202884128,1.27899764,117500.0,117490.0,2.00932424]
[1758202884328,1.27899764,117500.0,117490.0,1.12056824]
[1758202884534,1.27899764,117500.0,117490.0,1.92400824]
[1758202885027,1.30022764,117500.0,117490.0,0.72694]
[1758202885233,1.30022764,117500.0,117490.0,0.3608]
[1758202885434,2.30465588,117500.0,117480.0,1.95416]
[1758202885625,0.01391,117490.0,117480.0,1.98416]
[1758202885825,0.01391,117490.0,117480.0,2.78816]
[1758202886131,0.01391,117490.0,117480.0,2.37778824]
[1758202886335,0.01391,117490.0,117480.0,3.18158824]
[1758202886525,0.01391,117490.0,117480.0,1.1946]
[1758202886725,0.03514,117490.0,117480.0,1.19452]
[1758202886926,0.03714,117490.0,117480.0,1.19452]
[1758202887126,0.03714,117490.0,117480.0,1.58814824]
[1758202887328,0.03714,117490.0,117480.0,1.58824824]
[1758202887525,0.03514,117490.0,117480.0,1.58824824]
[1758202887728,0.03814,117490.0,117480.0,0.3909]
[1758202887933,0.03814,117490.0,117480.0,0.3609]
[1758202888324,0.03914,117490.0,117480.0,0.3609]
[1758202888730,0.68276824,117490.0,117480.0,0.3609]
[1758202889031,0.28914,117490.0,117480.0,0.80342]
[1758202889230,0.68276824,117490.0,117480.0,0.0001]
[1758202890129,0.28914,117490.0,117480.0,0.0001]
[1758202890430,0.68276824,117490.0,117480.0,0.0001]
[1758202890627,1.04356824,117490.0,117480.0,0.0001]
[1758202891023,0.64994,117490.0,117480.0,0.0001]
[1758202891729,1.04356824,117490.0,117480.0,0.0001]
[1758202892034,1.04456824,117490.0,117480.0,0.0001]
[1758202892426,1.04456824,117490.0,117470.0,0.02023466]
[1758202892626,0.78973824,117480.0,117470.0,0.02023466]
[1758202892831,0.42893824,117480.0,117470.0,0.02023466]
[1758202893127,0.03531,117480.0,117470.0,0.4138629]
[1758202893323,0.03531,117480.0,117470.0,0.02023466]
[1758202893736,1.03973824,117480.0,117470.0,4e-05]
[1758202893932,1.84225824,117480.0,117470.0,4e-05]
[1758202894433,1.44863,117480.0,117470.0,4e-05]
[1758202894629,1.03973824,117480.0,117470.0,4e-05]
[1758202894933,1.44867,117480.0,117470.0,4e-05]
[1758202895122,0.65467527,117480.0,117470.0,4e-05]
[1758202895327,1.85078351,117480.0,117470.0,4e-05]
[1758202895730,1.85278351,117480.0,117470.0,4e-05]
[1758202896628,1.85478351,117480.0,117470.0,4e-05]
[1758202897431,2.26959875,117480.0,117470.0,4e-05]
[1758202897636,0.03531,117450.0,117440.0,0.3608]
[1758202898736,0.03531,117450.0,117440.0,0.3618]
[1758202899138,0.42893824,117450.0,117440.0,0.3618]
[1758202899538,0.03531,117450.0,117440.0,0.3618]
[1758202900041,0.03631,117450.0,117440.0,0.3618]
[1758202900237,0.42993824,117450.0,117440.0,0.001]
[1758202900431,0.79073824,117450.0,117440.0,0.001]
[1758202900627,0.03531,117430.0,117420.0,0.3608]
[1758202900834,0.03531,117430.0,117420.0,1.32268]
[1758202901438,0.03531,117430.0,117420.0,1.71630824]
[1758202901738,0.0127,117430.0,117420.0,1.71630824]
[1758202902242,0.03531,117430.0,117410.0,1.42826122]
[1758202902436,0.0127,117420.0,117410.0,1.12449]
[1758202902933,0.03531,117420.0,117410.0,0.3608]
[1758202903136,0.42893824,117420.0,117410.0,0.3608]
[1758202903434,0.03531,117400.0,117380.0,1.89982824]
[1758202903638,0.0127,117390.0,117380.0,2.37982824]
[1758202903833,0.0127,117390.0,117380.0,1.64232]
[1758202905038,0.03531,117390.0,117380.0,2.03942824]
[1758202905237,0.03531,117390.0,117380.0,2.06042824]
[1758202905534,0.03731,117390.0,117380.0,2.06042824]
[1758202906043,0.0147,117390.0,117380.0,2.31042824]
[1758202906435,0.0157,117390.0,117380.0,2.75145714]
[1758202906830,0.003,117390.0,117380.0,3.07145714]
[1758202907037,0.0127,117400.0,117390.0,0.0851416]
[1758202907235,0.0127,117400.0,117390.0,1.37956984]
[1758202907542,0.0127,117400.0,117390.0,1.62956984]
[1758202907742,0.0127,117410.0,117390.0,1.62956984]
[1758202907743,0.0127,117410.0,117400.0,0.0851344]
[1758202907941,0.0127,117410.0,117400.0,1.55970824]
[1758202908244,0.0127,117410.0,117400.0,1.64484264]
[1758202908637,0.0127,117410.0,117400.0,2.82608927]
[1758202908837,0.0127,117410.0,117400.0,2.43246103]
[1758202909038,0.0127,117410.0,117400.0,2.82608927]
[1758202909343,0.0127,117420.0,117400.0,2.82608927]
[1758202909537,0.0127,117420.0,117410.0,0.83955564]
[1758202909731,0.0127,117420.0,117410.0,0.92955564]
[1758202909937,0.0127,117420.0,117410.0,0.84442824]
[1758202910440,0.02962291,117430.0,117410.0,0.84442824]
[1758202910441,0.02962291,117430.0,117420.0,0.0851203]
[1758202910643,0.02962291,117430.0,117420.0,1.64498854]
[1758202911044,0.02962291,117430.0,117420.0,1.64494854]
[1758202911241,0.02962291,117430.0,117420.0,0.75452824]
[1758202911547,0.02962291,117430.0,117420.0,1.55992824]
[1758202911942,0.0127,117430.0,117420.0,0.75652824]
[1758202912440,0.28531,117430.0,117420.0,0.3629]
[1758202912637,0.28531,117430.0,117420.0,1.16842]
[1758202913040,0.28631,117430.0,117420.0,1.17542]
[1758202913341,0.28631,117430.0,117420.0,0.81462]
[1758202913737,0.28731,117430.0,117420.0,0.0181]
[1758202914047,0.28731,117430.0,117420.0,0.8235]
[1758202914343,0.28631,117430.0,117420.0,1.17322]
[1758202914546,0.28631,117430.0,117420.0,1.17422]
[1758202914744,0.0137,117430.0,117420.0,1.56784824]
[1758202914949,0.0127,117430.0,117420.0,1.56084824]
[1758202915139,0.0137,117430.0,117420.0,1.56084824]
[1758202915440,0.0137,117430.0,117420.0,2.18596844]
[1758202916640,0.001,117430.0,117420.0,2.82959668]
[1758202916943,0.0128,117440.0,117430.0,0.0851129]
[1758202917144,0.0127,117440.0,117430.0,0.83964114]
[1758202917344,0.0127,117440.0,117430.0,1.40964114]
[1758202917846,0.0128,117450.0,117440.0,0.0851057]
[1758202918040,0.0127,117450.0,117440.0,1.64487394]
[1758202918244,0.0127,117450.0,117440.0,1.89487394]
[1758202918440,0.0127,117450.0,117440.0,1.89475394]
[1758202918641,0.0128,117460.0,117440.0,1.89475394]
[1758202918846,0.0128,117460.0,117450.0,0.75442824]
[1758202919041,0.0127,117460.0,117450.0,0.75452824]
[1758202919339,0.28441,117460.0,117450.0,0.0001]
[1758202919545,0.28441,117460.0,117450.0,0.80506]
[1758202919742,0.28441,117460.0,117450.0,1.16586]
[1758202919938,0.28441,117460.0,117450.0,0.0001]
[1758202920142,0.67803824,117460.0,117450.0,0.0001]
[1758202920446,0.28441,117460.0,117450.0,0.0001]
[1758202920839,1.03883824,117460.0,117450.0,0.0001]
[1758202921242,0.64521,117460.0,117450.0,0.0001]
[1758202921445,0.28441,117460.0,117450.0,0.0001]
[1758202921640,0.03441,117460.0,117450.0,0.75452824]
[1758202922847,0.0127,117460.0,117450.0,0.75452824]
[1758202923048,0.0137,117460.0,117450.0,0.75452824]
[1758202923244,0.03626,117460.0,117450.0,1.56040824]
[1758202923445,0.0137,117460.0,117450.0,1.56040824]
[1758202924546,0.0137,117460.0,117450.0,1.89550674]
[1758202924850,0.0137,117460.0,117450.0,1.81140824]
[1758202925049,0.0127,117460.0,117450.0,1.81140824]
[1758202925251,0.0127,117460.0,117450.0,1.89650674]
[1758202925450,0.0127,117460.0,117450.0,1.00552824]
[1758202925652,0.0127,117460.0,117450.0,1.89630674]
[1758202925848,0.0128,117470.0,117460.0,0.0850912]
[1758202926048,0.0127,117470.0,117460.0,1.27452824]
[1758202926251,0.0127,117470.0,117460.0,1.56012824]
[1758202926560,0.03526,117470.0,117460.0,1.16646]
[1758202926755,0.28526,117470.0,117460.0,0.80566]
[1758202926955,0.28526,117470.0,117460.0,0.0001]
[1758202927154,0.28626,117470.0,117460.0,0.80566]
[1758202927455,0.28626,117470.0,117460.0,0.80574]
[1758202927654,0.28626,117470.0,117460.0,0.0001]
[1758202928250,0.28626,117470.0,117460.0,1.16622]
[1758202928455,0.28626,117470.0,117460.0,1.55984824]
[1758202928456,0.0137,117470.0,117460.0,1.55984824]
[1758202928647,0.0137,117470.0,117460.0,1.80984824]
[1758202928847,0.0137,117470.0,117460.0,1.41622]
[1758202929047,0.0137,117470.0,117460.0,1.80984824]
[1758202929951,0.0137,117470.0,117460.0,1.81000824]
[1758202931654,0.001,117470.0,117460.0,2.48509924]
[1758202931852,0.001,117470.0,117460.0,3.07354472]
[1758202932056,0.03088114,117480.0,117470.0,0.0850837]
[1758202932356,0.03078114,117480.0,117470.0,1.81193742]
[1758202932657,0.01335,117480.0,117470.0,2.36193742]
[1758202933251,0.01335,117480.0,117470.0,3.16677742]
[1758202933454,0.002,117480.0,117470.0,3.16677742]
[1758202933754,0.002,117480.0,117470.0,2.36193742]
[1758202933957,0.002,117480.0,117470.0,3.16665742]
[1758202934158,0.002,117480.0,117470.0,2.36193742]
[1758202934358,0.01538,117480.0,117470.0,3.16645742]
[1758202934556,0.01638,117480.0,117470.0,3.16645742]
[1758202934757,0.01638,117480.0,117470.0,3.08129372]
[1758202935058,0.01438,117480.0,117470.0,1.23578]
[1758202935354,0.68297686,117480.0,117470.0,0.94678]
[1758202935559,0.68297686,117480.0,117470.0,0.81666]
[1758202935750,0.68297686,117480.0,117470.0,0.81566]
[1758202935949,1.04477686,117480.0,117470.0,0.0191]
[1758202936355,0.03798,117480.0,117470.0,0.0191]
[1758202936555,0.03598,117480.0,117470.0,0.75993686]
[1758202936949,0.03598,117480.0,117470.0,0.39913686]
[1758202937153,0.43201686,117480.0,117470.0,0.8073]
[1758202937355,0.03598,117480.0,117470.0,1.1683]
[1758202938053,0.03598,117480.0,117470.0,0.75993686]
[1758202938260,0.03598,117480.0,117470.0,1.56413686]
[1758202938562,0.03598,117480.0,117470.0,1.1651]
[1758202938766,0.03598,117480.0,117470.0,1.56113686]
[1758202938961,0.68301686,117480.0,117470.0,0.3609]
[1758202939160,0.68301686,117480.0,117470.0,1.16494]
[1758202939356,0.28698,117480.0,117470.0,0.0001]
[1758202939557,0.68301686,117480.0,117470.0,0.80498]
[1758202939862,0.68201686,117480.0,117470.0,0.0011]
[1758202940066,0.28598,117480.0,117470.0,0.80498]
[1758202940263,1.04281686,117480.0,117470.0,0.0011]
[1758202940459,1.43885372,117480.0,117470.0,0.0011]
[1758202941365,0.01338,117450.0,117430.0,0.3608]
[1758202941663,0.03594,117440.0,117430.0,1.20423686]
[1758202942167,0.03594,117440.0,117430.0,1.64027686]
[1758202942563,0.03594,117440.0,117430.0,0.4418]
[1758202942753,0.03594,117440.0,117430.0,1.16604]
[1758202943068,0.43197686,117440.0,117430.0,0.3628]
[1758202943252,0.03594,117440.0,117430.0,0.001]
[1758202943460,0.03594,117440.0,117430.0,0.3638]
[1758202943861,0.03594,117440.0,117430.0,0.003]
[1758202944057,0.79277686,117440.0,117430.0,0.003]
[1758202944260,0.43197686,117440.0,117430.0,0.003]
[1758202944464,1.04277686,117440.0,117430.0,0.003]
[1758202945564,0.64674,117440.0,117430.0,0.003]
[1758202946066,1.04277686,117440.0,117430.0,0.003]
[1758202947860,1.04277686,117440.0,117390.0,0.34388]
[1758202947861,0.03594,117400.0,117390.0,0.34388]
[1758202948065,0.43197686,117400.0,117370.0,0.45598102]
[1758202948256,0.43197686,117380.0,117370.0,0.36084]
[1758202948461,0.79277686,117380.0,117370.0,4e-05]
[1758202948677,0.43197686,117380.0,117370.0,4e-05]
[1758202948966,0.79277686,117380.0,117370.0,4e-05]
[1758202949269,0.39674,117380.0,117370.0,4e-05]
[1758202949470,0.79277686,117380.0,117370.0,4e-05]
[1758202949770,1.21277686,117380.0,117370.0,4e-05]
[1758202950164,1.21377686,117380.0,117370.0,0.01104]
[1758202950364,0.81774,117380.0,117370.0,0.01104]
[1758202950571,1.21377686,117380.0,117370.0,0.01104]
[1758202951468,0.81874,117380.0,117370.0,0.01804]
[1758202951670,1.21477686,117380.0,117370.0,0.01804]
[1758202952467,0.81874,117380.0,117370.0,0.01804]
[1758202952872,0.81874,117380.0,117370.0,0.41407686]
[1758202953076,0.81874,117380.0,117370.0,0.01804]
[1758202953371,0.45794,117380.0,117370.0,0.01804]
[1758202954171,1.26334,117380.0,117370.0,0.01804]
[1758202954373,0.45794,117380.0,117370.0,0.01804]
[1758202954876,1.21477686,117380.0,117370.0,0.01804]
[1758202955577,1.04477686,117380.0,117370.0,0.01804]
[1758202956173,1.84989686,117380.0,117370.0,0.01804]
[1758202956476,0.39874,117380.0,117370.0,0.41407686]
[1758202956677,0.03794,117380.0,117370.0,0.26804]
[1758202956876,0.01538,117380.0,117370.0,0.26804]
[1758202957080,0.01538,117380.0,117370.0,1.02487686]
[1758202958576,0.03786,117380.0,117370.0,1.02487686]
[1758202958781,0.03786,117380.0,117370.0,1.46891686]
[1758202958984,0.03786,117380.0,117370.0,1.82971686]
[1758202959281,0.01538,117380.0,117370.0,0.77487686]
[1758202959481,0.03786,117380.0,117370.0,1.21947686]
[1758202959685,0.03786,117380.0,117370.0,0.41407686]
[1758202959981,0.03786,117380.0,117370.0,1.46963686]
[1758202960182,0.03786,117380.0,117370.0,0.01814]
[1758202960375,0.43389686,117380.0,117370.0,0.01814]
[1758202960578,0.03786,117380.0,117370.0,0.01814]
[1758202960982,0.39866,117380.0,117370.0,0.01814]
[1758202961486,0.03786,117380.0,117370.0,0.01814]
[1758202961684,0.03786,117380.0,117370.0,0.41417686]
[1758202961874,0.03786,117380.0,117370.0,0.01814]
[1758202962082,1.04469686,117380.0,117370.0,0.01814]
[1758202963789,0.64866,117380.0,117370.0,0.01814]
[1758202964286,1.04469686,117380.0,117370.0,0.01814]
[1758202965178,0.64866,117380.0,117370.0,0.01814]
[1758202965689,1.04469686,117380.0,117370.0,0.01814]
[1758202967588,0.03786,117380.0,117370.0,0.77497686]
[1758202967782,0.03786,117380.0,117370.0,0.37894]
[1758202968093,0.03786,117380.0,117370.0,0.77497686]
[1758202968585,0.03786,117380.0,117370.0,1.02497686]
[1758202969193,0.01538,117380.0,117370.0,1.02497686]
[1758202969589,0.01538,117380.0,117370.0,1.11013306]
[1758202969794,0.01538,117380.0,117370.0,1.02497686]
[1758202970185,0.01538,117380.0,117370.0,0.62894]
[1758202970391,0.01538,117380.0,117370.0,1.83069686]
[1758202970594,0.03786,117380.0,117370.0,0.62894]
[1758202970997,0.79469686,117380.0,117370.0,1.07378]
[1758202971193,0.79469686,117380.0,117370.0,0.01814]
[1758202971392,0.03786,117380.0,117370.0,0.01814]
[1758202971694,0.68389686,117380.0,117370.0,0.01814]
[1758202972491,0.68289686,117380.0,117370.0,0.01114]
[1758202972688,0.68289686,117380.0,117370.0,0.01214]
[1758202973101,1.04369686,117380.0,117370.0,0.01214]
[1758202973298,0.03686,117380.0,117370.0,0.01214]
[1758202973598,0.03586,117380.0,117370.0,0.75897686]
[1758202973800,0.03586,117380.0,117370.0,1.56625686]
[1758202973999,0.43189686,117380.0,117370.0,0.36294]
[1758202974196,0.43189686,117380.0,117370.0,0.00214]
[1758202974197,0.79269686,117380.0,117370.0,0.00214]
[1758202974397,0.03586,117380.0,117370.0,0.00214]
[1758202974601,0.43189686,117380.0,117370.0,0.00214]
[1758202974798,0.03586,117380.0,117370.0,0.75897686]
[1758202975097,0.03586,117380.0,117370.0,0.36294]
[1758202975797,0.03586,117380.0,117370.0,0.00214]
[1758202976803,0.01338,117380.0,117370.0,1.00897686]
[1758202977506,0.01338,117380.0,117370.0,1.16897686]
[1758202978304,0.01338,117380.0,117370.0,1.23845206]
[1758202978604,0.01338,117380.0,117370.0,1.32360826]
[1758202978804,0.01338,117380.0,117370.0,1.23845206]
[1758202979102,0.01338,117380.0,117370.0,2.04561206]
[1758202979493,0.01338,117380.0,117370.0,1.23845206]
[1758202979698,0.01338,117380.0,117370.0,0.98845206]
[1758202980106,0.01338,117380.0,117370.0,1.79573206]
[1758202980400,0.0367,117380.0,117370.0,1.33042]
[1758202980698,0.43273686,117380.0,117370.0,1.17026]
[1758202980904,0.0367,117380.0,117370.0,1.17054]
[1758202981303,0.43273686,117380.0,117370.0,1.17054]
[1758202981696,0.43273686,117380.0,117370.0,0.00214]
[1758202981898,0.43273686,117380.0,117370.0,1.17034]
[1758202982097,0.01338,117380.0,117370.0,1.56637686]
[1758202982804,0.03495,117380.0,117370.0,1.17034]
[1758202983099,0.43098686,117380.0,117370.0,0.80942]
[1758202983703,0.03495,117380.0,117370.0,0.80942]
[1758202984007,0.01338,117380.0,117370.0,1.56625686]
[1758202984702,0.01338,117380.0,117370.0,1.42022]
[1758202985008,0.01338,117380.0,117370.0,2.38141306]
[1758202985403,0.01348,117390.0,117370.0,2.58141306]
[1758202985605,0.01348,117390.0,117380.0,0.75683686]
[1758202985802,0.01338,117390.0,117380.0,1.37693686]
[1758202986306,0.01338,117390.0,117380.0,2.43385686]
[1758202987110,0.01438,117390.0,117380.0,2.43385686]
[1758202987510,0.01438,117390.0,117380.0,1.93385686]
[1758202988012,0.01438,117390.0,117380.0,2.32989372]
[1758202988202,0.01438,117390.0,117380.0,2.29504272]
[1758202988411,0.001,117390.0,117380.0,3.06504272]
[1758202988610,0.01236,117390.0,117380.0,2.272609]
[1758202988910,0.01236,117390.0,117380.0,2.20596586]
[1758202989106,0.01236,117390.0,117380.0,3.40868272]
[1758202989702,0.01348,117400.0,117380.0,3.40868272]
[1758202989910,0.01348,117400.0,117390.0,1.15287372]
[1758202990211,0.01338,117410.0,117390.0,1.15287372]
[1758202990212,0.01348,117410.0,117390.0,1.75811552]
[1758202990399,0.01348,117410.0,117400.0,1.56303686]
[1758202990602,0.01338,117410.0,117400.0,0.75693686]
[1758202990817,0.03495,117410.0,117400.0,1.56301686]
[1758202991016,0.01338,117410.0,117400.0,0.3609]
[1758202991311,0.01338,117410.0,117400.0,1.56301686]
[1758202991515,0.01338,117410.0,117400.0,0.75693686]
[1758202991813,0.01338,117410.0,117400.0,1.56078789]
[1758202992310,0.03495,117410.0,117400.0,1.1667]
[1758202993410,0.01438,117410.0,117400.0,1.56066789]
[1758202993614,0.01438,117410.0,117400.0,0.75486789]
[1758202993809,0.03595,117410.0,117400.0,1.19978789]
[1758202994014,0.03595,117410.0,117400.0,0.0001]
[1758202994214,0.03595,117410.0,117400.0,0.80582]
[1758202994608,0.03595,117410.0,117400.0,0.80554]
[1758202994912,0.28595,117410.0,117400.0,0.80554]
[1758202995215,0.67991789,117410.0,117400.0,0.0001]
[1758202995413,0.67991789,117410.0,117400.0,0.80578]
[1758202995609,0.28595,117410.0,117400.0,1.16658]
[1758202995810,0.03595,117410.0,117400.0,1.16658]
[1758202996007,0.01438,117410.0,117400.0,1.56054789]
[1758202996911,0.01438,117410.0,117400.0,1.89568239]
[1758202997109,0.001,117410.0,117400.0,2.43568239]
[1758202997310,0.03000652,117420.0,117400.0,2.43568239]
[1758202997520,0.03000652,117420.0,117410.0,0.83989519]
[1758202997715,0.01286,117420.0,117410.0,0.75486789]
[1758202999018,0.01286,117420.0,117410.0,1.56030789]
[1758202999722,0.01286,117420.0,117410.0,1.56026789]
[1758203000218,0.01286,117420.0,117410.0,0.75586789]
[1758203000421,0.03443,117420.0,117410.0,0.75586789]
[1758203000622,0.03443,117420.0,117410.0,1.56082789]
[1758203001325,0.01286,117420.0,117410.0,1.56082789]
[1758203002520,0.01286,117420.0,117410.0,1.16686]
[1758203002722,0.01286,117420.0,117410.0,1.64595509]
[1758203002919,0.01296,117430.0,117410.0,2.69595509]
[1758203003119,0.0001,117430.0,117420.0,1.25935877]
[1758203003322,0.01296,117440.0,117420.0,2.43342666]
[1758203003523,0.01296,117440.0,117430.0,1.55952789]
[1758203003724,0.01286,117440.0,117430.0,1.82962789]
[1758203004026,0.01286,117440.0,117430.0,1.02486789]
[1758203004324,0.01286,117440.0,117430.0,1.82934789]
[1758203005116,0.01386,117440.0,117430.0,1.82934789]
[1758203005324,0.01386,117440.0,117430.0,0.6309]
[1758203005527,0.28543,117440.0,117430.0,0.80426]
[1758203005930,0.28543,117440.0,117430.0,0.80442]
[1758203006131,0.28743,117440.0,117430.0,0.80446]
[1758203007131,0.28743,117440.0,117430.0,1.16526]
[1758203007535,0.68139789,117440.0,117430.0,0.0001]
[1758203007833,1.04219789,117440.0,117430.0,0.0001]
[1758203008423,0.39823,117440.0,117430.0,0.0001]
[1758203011327,0.39823,117440.0,117430.0,0.80414]
[1758203011328,0.79219789,117440.0,117430.0,0.80414]
[1758203011828,0.79219789,117440.0,117430.0,0.80406]
[1758203012333,0.79219789,117440.0,117430.0,0.0001]
[1758203012629,0.79219789,117440.0,117430.0,0.80414]
[1758203013028,0.39823,117440.0,117430.0,0.80414]
[1758203013224,0.39823,117440.0,117430.0,1.19810789]
[1758203013823,0.39823,117440.0,117430.0,0.80414]
[1758203014426,0.03743,117440.0,117430.0,1.16494]
[1758203014733,0.01586,117440.0,117430.0,1.80890789]
[1758203015937,0.01586,117440.0,117430.0,1.00486789]
[1758203016236,0.01586,117440.0,117430.0,0.6109]
[1758203016435,0.039,117440.0,117430.0,1.55934789]
[1758203017633,0.039,117440.0,117430.0,0.3609]
[1758203017827,0.039,117440.0,117430.0,1.16534]
[1758203018032,0.01586,117440.0,117430.0,1.55930789]
[1758203018732,0.01586,117440.0,117430.0,1.00486789]
[1758203019036,0.01586,117440.0,117430.0,1.80942789]
[1758203019436,0.01586,117440.0,117430.0,1.55942789]
[1758203019624,0.01586,117440.0,117430.0,1.55982789]
[1758203020431,0.01586,117440.0,117430.0,0.3609]
[1758203020633,0.039,117440.0,117430.0,1.1657]
[1758203020833,0.289,117440.0,117430.0,0.80506]
[1758203021233,0.289,117440.0,117430.0,0.0001]
[1758203021433,0.289,117440.0,117430.0,0.80506]
[1758203021633,0.6498,117440.0,117430.0,0.80506]
[1758203021836,0.6498,117440.0,117430.0,0.0001]